bitfinex/quotes_BTCUSD_20250422
["timestamp","ask_amount","ask_price","bid_price","bid_amount"]
[1745365790267,0.00435378,93484.0,93483.0,0.56771452]
[1745365790455,0.00435378,93484.0,93483.0,0.56871452]
[1745365791183,0.00435378,93484.0,93483.0,0.525926]
[1745365791405,0.00435378,93484.0,93483.0,0.003]
[1745365791609,0.00435378,93484.0,93483.0,0.00406859]
[1745365791796,0.00435378,93484.0,93483.0,0.04685711]
[1745365792000,0.00435378,93484.0,93483.0,0.83871811]
[1745365792211,0.04287878,93508.0,93498.0,0.2714165]
[1745365792411,0.10830305,93507.0,93498.0,0.2714165]
[1745365793863,0.10930305,93507.0,93498.0,0.2714165]
[1745365794216,0.11230305,93507.0,93498.0,0.2714165]
[1745365795357,0.11230305,93507.0,93498.0,0.29690383]
[1745365797175,0.0451,93519.0,93501.0,0.01069507]
[1745365797393,0.0004248,93522.0,93512.0,0.2714165]
[1745365797598,0.0004248,93522.0,93513.0,0.0010674]
[1745365798264,0.0004248,93522.0,93514.0,0.563861]
[1745365798435,0.0004248,93522.0,93518.0,0.04277251]
[1745365798666,0.0004248,93522.0,93519.0,0.00106694]
[1745365799069,0.0004248,93522.0,93520.0,0.00734698]
[1745365799251,0.0004248,93522.0,93521.0,0.00106695]
[1745365799622,0.0004248,93522.0,93520.0,0.00734698]
[1745365799799,0.0427991,93530.0,93520.0,0.00734698]
[1745365800034,0.0427991,93530.0,93512.0,0.06090743]
[1745365800241,0.0427991,93530.0,93520.0,0.2724165]
[1745365800922,0.0427991,93530.0,93520.0,0.2714165]
[1745365801277,0.11097604,93529.0,93521.0,0.002]
[1745365801481,0.13278292,93528.0,93521.0,0.002]
[1745365801685,0.0471,93526.0,93521.0,0.002]
[1745365801894,0.11097668,93525.0,93521.0,0.002]
[1745365802550,0.11097668,93525.0,93520.0,0.002]
[1745365802791,0.11097668,93525.0,93512.0,0.00013856]
[1745365803021,0.0451,93524.0,93512.0,0.00013856]
[1745365803232,0.001,93530.0,93512.0,0.00013856]
[1745365803233,0.002,93529.0,93524.0,0.01454085]
[1745365803447,0.0004247,93545.0,93525.0,0.240546]
[1745365803652,0.0471,93541.0,93526.0,0.2714165]
[1745365803858,0.0471,93541.0,93531.0,0.04276629]
[1745365804036,0.0471,93541.0,93529.0,0.04276735]
[1745365804449,0.0004247,93545.0,93535.0,0.04276474]
[1745365804650,0.0004247,93545.0,93535.0,0.04490259]
[1745365804824,0.0004247,93545.0,93535.0,0.04276474]
[1745365805216,0.0004247,93545.0,93535.0,0.70112859]
[1745365805417,0.0004247,93545.0,93535.0,0.75591674]
[1745365805666,0.0004247,93545.0,93535.0,0.53329585]
[1745365805837,0.0004247,93545.0,93535.0,0.16560864]
[1745365806035,0.0004247,93545.0,93535.0,1.77827933]
[1745365806234,0.0004247,93545.0,93535.0,1.36730264]
[1745365806447,0.0004247,93545.0,93535.0,1.36830264]
[1745365806747,0.0451,93572.0,93558.0,0.04275422]
[1745365806954,0.0451,93572.0,93559.0,0.00213752]
[1745365807371,0.0451,93572.0,93550.0,0.2714165]
[1745365807746,0.00267173,93569.0,93542.0,0.0427611]
[1745365807944,0.10830305,93568.0,93544.0,0.04276062]
[1745365808148,0.00267197,93567.0,93559.0,0.2714165]
[1745365808615,0.00267197,93567.0,93559.0,0.0254303]
[1745365809015,0.10830305,93566.0,93550.0,0.2714165]
[1745365809214,0.00267221,93565.0,93559.0,0.02513726]
[1745365809451,0.10830305,93564.0,93550.0,0.001]
[1745365809625,0.00267221,93563.0,93550.0,0.2724165]
[1745365809837,0.10830305,93562.0,93550.0,0.29734805]
[1745365810083,0.00267221,93561.0,93550.0,0.29734805]
[1745365810288,0.15540305,93560.0,93550.0,0.02593155]
[1745365810489,0.00267232,93559.0,93550.0,0.02593155]
[1745365810712,0.00267232,93559.0,93542.0,0.00013856]
[1745365810713,0.0451,93557.0,93542.0,0.00013856]
[1745365810926,0.0471,93555.0,93542.0,0.00013856]
[1745365811131,0.0471,93553.0,93542.0,0.00013856]
[1745365811301,0.1109754,93552.0,93542.0,0.00013856]
[1745365813145,0.1129754,93552.0,93542.0,0.00013856]
[1745365813363,0.1109754,93552.0,93542.0,0.00013856]
[1745365813779,0.1129754,93552.0,93542.0,0.00013856]
[1745365813984,0.1109754,93552.0,93542.0,0.00013856]
[1745365815193,0.1129754,93552.0,93542.0,0.00013856]
[1745365816022,0.1109754,93552.0,93542.0,0.00013856]
[1745365816345,0.1129754,93552.0,93542.0,0.00013856]
[1745365816558,0.1109754,93552.0,93542.0,0.00013856]
[1745365817452,0.1129754,93552.0,93542.0,0.00013856]
[1745365818663,0.1109754,93552.0,93542.0,0.00013856]
[1745365818880,0.1129754,93552.0,93542.0,0.00013856]
[1745365819314,0.0472,93540.0,93512.0,0.001]
[1745365819531,0.0472,93538.0,93530.0,0.00013876]
[1745365819755,0.01069141,93533.0,93530.0,0.00013876]
[1745365819997,0.20410305,93531.0,93530.0,0.00013876]
[1745365820210,0.22453392,93528.0,93512.0,0.02645533]
[1745365820443,0.22456363,93515.0,93512.0,0.00113989]
[1745365820679,0.22456363,93515.0,93483.0,0.0008492]
[1745365820680,0.01069518,93500.0,93483.0,0.0008492]
[1745365820910,0.09847235,93499.0,93491.0,0.00013995]
[1745365821139,0.10830305,93498.0,93491.0,0.00013995]
[1745365821384,0.00267235,93497.0,93491.0,0.00013995]
[1745365821581,0.10830305,93496.0,93491.0,0.00013995]
[1745365821788,0.00267235,93495.0,93491.0,0.00013995]
[1745365821987,0.10830305,93494.0,93491.0,0.00013995]
[1745365822190,0.00267235,93493.0,93491.0,0.00013995]
[1745365822393,0.10830305,93492.0,93491.0,0.00013995]
[1745365823441,0.1109754,93492.0,93491.0,0.00013995]
[1745365823875,0.1149754,93492.0,93491.0,0.00013995]
[1745365824712,0.1199754,93492.0,93491.0,0.00013995]
[1745365825193,0.5269754,93492.0,93491.0,0.00013995]
[1745365825343,0.52930305,93492.0,93491.0,0.00013995]
[1745365825747,0.52530305,93492.0,93491.0,0.00013995]
[1745365826210,0.53030305,93492.0,93491.0,0.00013995]
[1745365826374,0.52530305,93492.0,93491.0,0.00013995]
[1745365826586,0.61216226,93492.0,93491.0,0.00013995]
[1745365826758,0.62610305,93492.0,93491.0,0.00013995]
[1745365826968,0.01069758,93479.0,93476.0,0.001]
[1745365827178,0.20190305,93477.0,93476.0,0.00146741]
[1745365827435,0.41585942,93477.0,93476.0,0.00146741]
[1745365828406,0.0451,93470.0,93453.0,0.02605049]
[1745365828594,0.10830305,93466.0,93453.0,0.02605049]
[1745365828812,0.00267235,93465.0,93453.0,0.02605049]
[1745365829020,0.10830305,93464.0,93453.0,0.02605049]
[1745365829441,0.00167235,93463.0,93453.0,0.02605049]
[1745365829642,0.10830305,93462.0,93453.0,0.02605049]
[1745365829853,0.00167235,93461.0,93453.0,0.02605049]
[1745365830058,0.10830305,93460.0,93453.0,0.02605049]
[1745365832986,0.11030305,93460.0,93453.0,0.02605049]
[1745365833513,0.002,93460.0,93453.0,0.02605049]
[1745365834200,0.00167235,93476.0,93453.0,0.02605049]
[1745365834406,0.10830305,93475.0,93453.0,0.02605049]
[1745365834600,0.00167235,93474.0,93453.0,0.02705049]
[1745365834810,0.10830305,93473.0,93460.0,0.40673904]
[1745365835015,0.00167235,93472.0,93460.0,0.40673904]
[1745365835229,0.10830305,93471.0,93460.0,0.40673904]
[1745365835446,0.00167235,93470.0,93460.0,0.40673904]
[1745365835665,0.10830305,93469.0,93460.0,0.40673904]
[1745365835864,0.00167235,93468.0,93460.0,0.40673904]
[1745365836069,0.10830305,93467.0,93460.0,0.40673904]
[1745365836389,0.09406784,93477.0,93460.0,0.40673904]
[1745365836390,0.00167235,93476.0,93460.0,0.40673904]
[1745365836602,0.10830305,93475.0,93460.0,0.40673904]
[1745365836812,0.001,93470.0,93460.0,0.40673904]
[1745365837022,0.10830305,93469.0,93460.0,0.40673904]
[1745365837219,0.001,93467.0,93460.0,0.40673904]
[1745365837629,0.10830305,93469.0,93460.0,0.40673904]
[1745365837851,0.001,93475.0,93461.0,0.12718292]
[1745365838070,0.0451,93502.0,93462.0,0.01454085]
[1745365838289,0.1099754,93501.0,93490.0,0.40673904]
[1745365838720,0.00167235,93500.0,93490.0,0.40673904]
[1745365838930,0.10830305,93499.0,93490.0,0.40673904]
[1745365839576,0.10830305,93499.0,93490.0,0.40687904]
[1745365839996,0.00167235,93498.0,93490.0,0.40687904]
[1745365840243,0.10830305,93497.0,93490.0,0.40687904]
[1745365840461,0.00167235,93496.0,93490.0,0.40787904]
[1745365840664,0.10830305,93495.0,93490.0,0.40787904]
[1745365840865,0.00167235,93494.0,93490.0,0.40687904]
[1745365841283,0.10830305,93493.0,93490.0,0.00014]
[1745365841535,0.00167235,93492.0,93490.0,0.00014]
[1745365841748,0.10830305,93491.0,93490.0,0.00014]
[1745365841954,0.10634598,93491.0,93490.0,0.00014]
[1745365842169,0.10634598,93491.0,93490.0,0.00114]
[1745365842606,0.10634598,93491.0,93490.0,0.00014]
[1745365842933,0.10634598,93491.0,93490.0,0.00114]
[1745365843966,0.10634598,93491.0,93490.0,0.00014]
[1745365844614,0.00167235,93501.0,93490.0,0.00014]
[1745365844838,0.10830305,93500.0,93491.0,0.40673904]
[1745365845056,0.10830305,93501.0,93491.0,0.40673904]
[1745365845654,0.10830305,93501.0,93492.0,0.00734533]
[1745365846310,0.0469,93511.0,93492.0,0.00734533]
[1745365846579,0.10830305,93510.0,93493.0,0.00734533]
[1745365847053,0.10830305,93510.0,93494.0,0.00734533]
[1745365847556,0.00167235,93509.0,93494.0,0.00734533]
[1745365847861,0.00167235,93509.0,93492.0,0.003]
[1745365847862,0.10830305,93508.0,93493.0,0.00734533]
[1745365848020,0.00167235,93521.0,93500.0,0.01069518]
[1745365848220,0.00167235,93526.0,93501.0,0.48066271]
[1745365848415,0.00167235,93526.0,93502.0,0.260422]
[1745365848642,0.00167235,93526.0,93503.0,0.00213871]
[1745365848796,0.00167235,93526.0,93503.0,0.17582971]
[1745365849005,0.0014249,93529.0,93512.0,0.04277512]
[1745365849281,0.0014249,93529.0,93513.0,0.45769533]
[1745365849418,0.0014249,93529.0,93513.0,0.00734533]
[1745365849823,0.0014249,93529.0,93513.0,0.03301421]
[1745365850125,0.0014249,93529.0,93513.0,0.00734533]
[1745365850523,0.0014249,93529.0,93513.0,0.1390148]
[1745365850733,0.0014249,93514.0,93513.0,0.1390148]
[1745365852239,0.0004249,93514.0,93513.0,0.1390148]
[1745365852443,0.0004249,93514.0,93513.0,0.16314689]
[1745365852641,0.0004249,93514.0,93513.0,0.16414689]
[1745365852975,0.0004249,93514.0,93513.0,0.16628521]
[1745365853182,0.0004249,93514.0,93513.0,0.16728521]
[1745365853333,0.0004249,93514.0,93513.0,0.16628521]
[1745365853542,0.0004249,93514.0,93513.0,0.16528521]
[1745365853764,0.0004249,93514.0,93513.0,0.16728521]
[1745365853965,0.0004249,93514.0,93513.0,0.16928521]
[1745365854527,0.0004249,93514.0,93513.0,0.16928515]
[1745365855273,0.0004249,93514.0,93513.0,0.28999079]
[1745365856250,0.0004249,93514.0,93513.0,0.28799079]
[1745365856473,0.0004249,93514.0,93513.0,0.28599079]
[1745365856644,0.0004249,93514.0,93513.0,0.29199079]
[1745365856875,0.0004249,93514.0,93513.0,0.29699079]
[1745365858335,0.0004249,93514.0,93513.0,0.29799079]
[1745365858902,0.0004249,93514.0,93513.0,0.29699079]
[1745365859338,0.0004249,93514.0,93513.0,0.27644994]
[1745365859514,0.0004249,93514.0,93513.0,0.31422474]
[1745365859714,0.0004249,93514.0,93513.0,0.32222474]
[1745365859917,0.0004249,93514.0,93513.0,0.32822474]
[1745365860119,0.0004249,93514.0,93513.0,0.03361589]
[1745365860520,0.0004249,93514.0,93513.0,0.04761589]
[1745365860731,0.0980249,93514.0,93513.0,0.04761589]
[1745365861127,0.0004249,93514.0,93513.0,0.04761589]
[1745365861710,0.0004249,93514.0,93513.0,0.04175438]
[1745365861911,0.0004249,93514.0,93513.0,0.03575438]
[1745365862130,0.0004249,93514.0,93513.0,0.03761589]
[1745365862331,0.0426249,93526.0,93513.0,0.04161589]
[1745365862538,0.0426249,93526.0,93516.0,0.40673904]
[1745365863555,0.0426249,93526.0,93517.0,0.00734533]
[1745365864380,0.0456249,93526.0,93518.0,0.00734533]
[1745365864830,0.0456249,93526.0,93519.0,0.00734533]
[1745365865587,0.1099754,93525.0,93520.0,0.00734533]
[1745365865805,0.13408292,93524.0,93520.0,0.00734533]
[1745365866015,0.1099754,93523.0,93520.0,0.00748533]
[1745365866242,0.1099754,93523.0,93520.0,0.00014]
[1745365866440,0.1099754,93523.0,93510.0,0.0229457]
[1745365866441,0.0976,93515.0,93510.0,0.0229457]
[1745365866677,0.1099754,93514.0,93510.0,0.0229457]
[1745365866844,0.0484,93513.0,93510.0,0.0229457]
[1745365867047,0.1099754,93512.0,93493.0,0.00114005]
[1745365867250,0.1099754,93512.0,93494.0,0.00735873]
[1745365868080,0.1099754,93512.0,93493.0,0.00114005]
[1745365868277,0.1099754,93512.0,93494.0,0.02318403]
[1745365868473,0.1099754,93512.0,93493.0,0.00114005]
[1745365869333,0.1099754,93512.0,93500.0,0.40704241]
[1745365869555,0.1129754,93512.0,93493.0,0.00114005]
[1745365869766,0.1099754,93512.0,93493.0,0.00114005]
[1745365870196,0.1129754,93512.0,93493.0,0.00114005]
[1745365870627,0.10830305,93506.0,93493.0,0.00114005]
[1745365870839,0.00167235,93505.0,93493.0,0.00114005]
[1745365871053,0.10830305,93504.0,93493.0,0.0243377]
[1745365871255,0.00167235,93503.0,93493.0,0.0243377]
[1745365871465,0.10830305,93502.0,93493.0,0.0243377]
[1745365871678,0.05007235,93511.0,93493.0,0.0243377]
[1745365871942,0.10830305,93510.0,93501.0,0.40704241]
[1745365872754,0.003,93504.0,93501.0,0.40704241]
[1745365872964,0.003,93504.0,93502.0,0.00213877]
[1745365873644,0.003,93504.0,93503.0,0.04277937]
[1745365874863,0.0471,93519.0,93509.0,0.04277663]
[1745365875037,0.10830305,93518.0,93506.0,0.04277763]
[1745365875268,0.10830305,93518.0,93508.0,0.0427769]
[1745365875469,0.10830305,93518.0,93510.0,0.04277611]
[1745365875638,0.10830305,93518.0,93508.0,0.0427769]
[1745365875845,0.08568292,93509.0,93466.0,0.01069907]
[1745365876047,0.1099754,93508.0,93480.0,0.40704241]
[1745365876252,0.1099754,93508.0,93490.0,0.40704241]
[1745365877964,0.0471,93507.0,93490.0,0.40704241]
[1745365878103,0.1099754,93506.0,93490.0,0.40704241]
[1745365879549,0.1129754,93506.0,93490.0,0.40704241]
[1745365880380,0.1129754,93506.0,93480.0,0.40704241]
[1745365881582,0.003,93506.0,93490.0,0.40704241]
[1745365881783,0.003,93506.0,93494.0,0.0021392]
[1745365882010,0.003,93506.0,93495.0,0.10830305]
[1745365882239,0.003,93506.0,93496.0,0.49379485]
[1745365882435,0.003,93506.0,93496.0,0.01454085]
[1745365882640,0.003,93506.0,93495.0,0.10830305]
[1745365882851,0.00167235,93516.0,93496.0,0.184836]
[1745365883078,0.002,93506.0,93496.0,0.00213889]
[1745365883317,0.10830305,93505.0,93486.0,0.5]
[1745365883512,0.00167235,93504.0,93486.0,0.5]
[1745365883717,0.10830305,93503.0,93486.0,0.5]
[1745365883923,0.00167235,93502.0,93486.0,0.5]
[1745365884127,0.10830305,93503.0,93494.0,0.00736619]
[1745365884325,0.002,93506.0,93494.0,0.00736619]
[1745365884538,0.00167235,93513.0,93494.0,0.00836619]
[1745365884774,0.0458,93528.0,93507.0,0.04277747]
[1745365884960,0.0458,93528.0,93515.0,0.40704241]
[1745365885170,0.00167235,93527.0,93515.0,0.40704241]
[1745365885378,0.00167235,93527.0,93516.0,0.00736619]
[1745365885788,0.0458,93528.0,93516.0,0.00736619]
[1745365886008,0.0458,93528.0,93517.0,0.00736619]
[1745365886209,0.00167235,93527.0,93517.0,0.00736619]
[1745365886415,0.003,93525.0,93517.0,0.00736619]
[1745365886867,0.003,93525.0,93518.0,0.00736619]
[1745365887100,0.003,93525.0,93519.0,0.00736619]
[1745365887689,0.001,93525.0,93519.0,0.00736619]
[1745365888064,0.001,93525.0,93520.0,0.00736619]
[1745365888392,0.10830305,93524.0,93520.0,0.00736619]
[1745365888776,0.098,93523.0,93495.0,0.00736619]
[1745365888984,0.1099754,93522.0,93495.0,0.00736619]
[1745365889860,0.1099754,93522.0,93494.0,0.001]
[1745365890967,0.1099754,93522.0,93495.0,0.00738086]
[1745365891326,0.1099754,93522.0,93495.0,0.01138086]
[1745365891556,0.1099754,93522.0,93496.0,0.00738086]
[1745365892156,0.1099754,93522.0,93500.0,0.40704241]
[1745365892353,0.1099754,93522.0,93501.0,0.00738086]
[1745365893144,0.1099754,93522.0,93502.0,0.00738086]
[1745365893964,0.1099754,93522.0,93503.0,0.00738086]
[1745365894397,0.1099754,93522.0,93504.0,0.00738086]
[1745365895057,0.1099754,93522.0,93505.0,0.00738086]
[1745365895490,0.1099754,93522.0,93506.0,0.00738086]
[1745365895713,0.1109754,93522.0,93506.0,0.00738086]
[1745365895925,0.1099754,93522.0,93506.0,0.00738086]
[1745365896342,0.1109754,93522.0,93500.0,0.40704241]
[1745365896538,0.1099754,93522.0,93500.0,0.40704241]
[1745365897266,0.049,93519.0,93493.0,0.0233377]
[1745365897426,0.1589754,93518.0,93493.0,0.0233377]
[1745365897642,0.049,93517.0,93493.0,0.0233377]
[1745365897837,0.1099754,93516.0,93493.0,0.0233377]
[1745365898528,0.049,93515.0,93493.0,0.0233377]
[1745365898751,0.1099754,93514.0,93493.0,0.0233377]
[1745365898973,0.049,93512.0,93493.0,0.0233377]
[1745365899183,0.1099754,93511.0,93493.0,0.0233377]
[1745365899626,0.049,93510.0,93493.0,0.0233377]
[1745365899861,0.1099754,93509.0,93493.0,0.0233377]
[1745365900575,0.10830305,93508.0,93493.0,0.0233377]
[1745365900801,0.22460853,93496.0,93493.0,0.00014005]
[1745365901021,0.1589754,93495.0,93493.0,0.00014005]
[1745365901240,0.049,93492.0,93486.0,0.5]
[1745365901470,0.049,93488.0,93486.0,0.00013982]
[1745365901662,0.1099754,93487.0,93486.0,0.00013982]
[1745365902330,0.1109754,93487.0,93486.0,0.00013982]
[1745365902958,0.1159754,93487.0,93486.0,0.00013982]
[1745365904488,0.2139754,93487.0,93486.0,0.00013982]
[1745365916368,0.24760653,93487.0,93486.0,0.00013982]
[1745365916572,0.2284812,93484.0,93483.0,0.02225285]
[1745365916787,0.01069827,93473.0,93465.0,0.0008492]
[1745365916983,0.10830305,93467.0,93465.0,0.0008492]
[1745365917196,0.00167235,93466.0,93465.0,0.0008492]
[1745365917390,0.1099754,93466.0,93465.0,0.0008492]
[1745365917929,0.10830305,93466.0,93465.0,0.0008492]
[1745365918142,0.1089754,93466.0,93465.0,0.0008492]
[1745365918357,0.10830305,93466.0,93465.0,0.0008492]
[1745365918793,0.11130305,93466.0,93465.0,0.0008492]
[1745365919669,0.11530305,93466.0,93465.0,0.0008492]
[1745365921333,0.1637754,93466.0,93465.0,0.0008492]
[1745365922165,0.43143325,93466.0,93465.0,0.0008492]
[1745365922379,0.43502545,93466.0,93465.0,0.0008492]
[1745365922626,0.26179758,93459.0,93458.0,0.00085]
[1745365922831,0.41750063,93459.0,93458.0,0.00085]
[1745365923266,0.41650063,93459.0,93458.0,0.00085]
[1745365923912,0.42550063,93459.0,93458.0,0.00185]
[1745365924350,0.41650063,93459.0,93458.0,0.00085]
[1745365924792,0.42350063,93459.0,93458.0,0.00085]
[1745365925231,0.41650063,93459.0,93458.0,0.00085]
[1745365925656,0.42350063,93459.0,93458.0,0.00085]
[1745365925865,0.43150063,93459.0,93458.0,0.00185]
[1745365926373,0.21850305,93459.0,93458.0,0.00185]
[1745365926795,0.2191754,93459.0,93458.0,0.00185]
[1745365927239,0.23171033,93459.0,93458.0,0.00185]
[1745365927441,0.23103798,93459.0,93458.0,0.00185]
[1745365927652,0.21850305,93459.0,93458.0,0.00185]
[1745365927860,0.2191754,93459.0,93458.0,0.00185]
[1745365931634,0.1239754,93459.0,93458.0,0.00185]
[1745365931856,0.12330305,93459.0,93458.0,0.00185]
[1745365932968,0.17300305,93459.0,93458.0,0.00185]
[1745365933194,0.40537084,93459.0,93458.0,0.00185]
[1745365933415,0.22280305,93459.0,93458.0,0.00185]
[1745365933603,0.2084754,93459.0,93458.0,0.00085]
[1745365933730,0.2094754,93459.0,93458.0,0.00085]
[1745365933943,0.2114754,93459.0,93458.0,0.00085]
[1745365934348,0.2104754,93459.0,93458.0,0.00085]
[1745365934558,0.2164754,93459.0,93458.0,0.00085]
[1745365935191,0.2104754,93459.0,93458.0,0.00085]
[1745365935411,0.2164754,93459.0,93458.0,0.00085]
[1745365935757,0.2224754,93459.0,93458.0,0.00185]
[1745365935953,0.2204754,93459.0,93430.0,0.20293133]
[1745365936162,0.10730305,93448.0,93430.0,0.20293133]
[1745365936418,0.00067235,93447.0,93430.0,0.20293133]
[1745365936627,0.10830305,93446.0,93430.0,0.20293133]
[1745365936811,0.00067235,93445.0,93431.0,0.08568292]
[1745365936970,0.10830305,93444.0,93431.0,0.08568292]
[1745365937174,0.00067235,93443.0,93431.0,0.08568292]
[1745365937390,0.10830305,93442.0,93430.0,0.20293133]
[1745365937597,0.00067235,93441.0,93430.0,0.20293133]
[1745365937767,0.10830305,93440.0,93430.0,0.20293133]
[1745365937967,0.00067235,93439.0,93420.0,0.40844404]
[1745365938167,0.10830305,93438.0,93431.0,0.001]
[1745365938449,0.00067235,93437.0,93431.0,0.001]
[1745365938661,0.15800305,93436.0,93420.0,0.0008504]
[1745365938869,0.00067235,93435.0,93420.0,0.0008504]
[1745365939100,0.10830305,93434.0,93430.0,0.001]
[1745365939302,0.00067235,93433.0,93430.0,0.001]
[1745365939506,0.10830305,93432.0,93430.0,0.001]
[1745365939814,0.00067235,93431.0,93430.0,0.001]
[1745365940018,0.1089754,93431.0,93430.0,0.001]
[1745365940173,0.1089754,93431.0,93427.0,0.0008496]
[1745365940374,0.10730305,93430.0,93427.0,0.0008496]
[1745365940579,0.00067235,93429.0,93427.0,0.0008496]
[1745365940817,0.10830305,93428.0,93427.0,0.0008496]
[1745365942226,0.10930305,93428.0,93427.0,0.0008496]
[1745365942660,0.10930305,93428.0,93427.0,0.0213825]
[1745365943094,0.004,93428.0,93427.0,0.0213825]
[1745365943506,0.004,93428.0,93418.0,0.5433714]
[1745365943718,0.004,93428.0,93419.0,0.127446]
[1745365944150,0.004,93428.0,93418.0,0.56317904]
[1745365944389,0.00081259,93444.0,93418.0,0.56317904]
[1745365944598,0.10830305,93443.0,93430.0,0.2716857]
[1745365944781,0.00067235,93442.0,93430.0,0.2716857]
[1745365944986,0.10830305,93441.0,93430.0,0.2716857]
[1745365945194,0.00067235,93440.0,93430.0,0.2716857]
[1745365945341,0.10830305,93439.0,93430.0,0.2716857]
[1745365945558,0.00067235,93438.0,93430.0,0.2716857]
[1745365945757,0.10830305,93437.0,93430.0,0.2716857]
[1745365945977,0.00067235,93436.0,93430.0,0.2716857]
[1745365946177,0.10830305,93435.0,93430.0,0.2716857]
[1745365946583,0.00067235,93434.0,93430.0,0.2716857]
[1745365947960,0.10830305,93433.0,93424.0,0.2716857]
[1745365948120,0.00067235,93432.0,93424.0,0.2716857]
[1745365948338,0.10830305,93431.0,93420.0,0.2716857]
[1745365948547,0.00067235,93430.0,93420.0,0.2716857]
[1745365948755,0.10830305,93429.0,93420.0,0.2716857]
[1745365948926,0.00067235,93428.0,93420.0,0.2716857]
[1745365949312,0.10830305,93427.0,93424.0,0.002]
[1745365949492,0.00067235,93426.0,93424.0,0.002]
[1745365949719,0.10830305,93425.0,93424.0,0.002]
[1745365950320,0.00067235,93435.0,93424.0,0.002]
[1745365950555,0.10830305,93434.0,93425.0,0.2716857]
[1745365950730,0.002,93426.0,93425.0,0.2716857]
[1745365951724,0.00067235,93433.0,93425.0,0.2716857]
[1745365951925,0.10830305,93432.0,93425.0,0.2716857]
[1745365952103,0.00067235,93431.0,93425.0,0.2716857]
[1745365952303,0.10830305,93430.0,93425.0,0.2716857]
[1745365952534,0.00067235,93429.0,93425.0,0.2716857]
[1745365952737,0.002,93426.0,93425.0,0.2716857]
[1745365952938,0.00067235,93427.0,93425.0,0.2716857]
[1745365953140,0.00067235,93427.0,93418.0,0.02014342]
[1745365953336,0.00067235,93427.0,93417.0,0.0008496]
[1745365953859,0.00067235,93427.0,93417.0,0.02071455]
[1745365954485,0.10830305,93426.0,93417.0,0.02071455]
[1745365954689,0.00067235,93425.0,93417.0,0.02071455]
[1745365954883,0.10830305,93424.0,93417.0,0.02071455]
[1745365955086,0.0487,93422.0,93417.0,0.02071455]
[1745365955403,0.1089754,93421.0,93417.0,0.02271455]
[1745365955648,0.1089754,93421.0,93417.0,0.02071455]
[1745365956022,0.1089754,93421.0,93417.0,0.02271455]
[1745365956779,0.1119754,93421.0,93417.0,0.02271455]
[1745365957153,0.1119754,93421.0,93417.0,0.02071455]
[1745365957566,0.1139754,93421.0,93417.0,0.02071455]
[1745365957768,0.1139754,93421.0,93410.0,0.07901511]
[1745365957973,0.1139754,93421.0,93410.0,0.09926407]
[1745365958296,0.1139754,93421.0,93410.0,0.02024896]
[1745365958500,0.21408691,93420.0,93409.0,0.0008496]
[1745365958700,0.1089754,93419.0,93409.0,0.02139318]
[1745365959939,0.1089754,93419.0,93409.0,0.02239318]
[1745365960759,0.1089754,93419.0,93409.0,0.02339318]
[1745365961139,0.1089754,93419.0,93409.0,0.02239318]
[1745365961315,0.1089754,93419.0,93409.0,0.02339318]
[1745365964074,0.1089754,93419.0,93409.0,0.29507888]
[1745365964691,0.1089754,93419.0,93409.0,0.02339318]
[1745365966282,0.1089754,93419.0,93409.0,0.29507888]
[1745365967464,0.1089754,93419.0,93409.0,0.02339318]
[1745365971831,0.10830305,93415.0,93409.0,0.0028496]
[1745365972035,0.10830305,93412.0,93409.0,0.0028496]
[1745365972248,0.00067235,93411.0,93409.0,0.0028496]
[1745365972468,0.1089754,93411.0,93409.0,0.0028496]
[1745365972676,0.00067235,93421.0,93409.0,0.02214756]
[1745365972893,0.10830305,93420.0,93410.0,0.2716857]
[1745365973341,0.10844324,93420.0,93410.0,0.2716857]
[1745365973789,0.00067235,93419.0,93410.0,0.2716857]
[1745365974006,0.001,93415.0,93410.0,0.2716857]
[1745365974220,0.10830305,93415.0,93410.0,0.2716857]
[1745365975122,0.00067235,93414.0,93410.0,0.2716857]
[1745365975562,0.00067235,93414.0,93409.0,0.02129185]
[1745365975909,0.10930305,93415.0,93409.0,0.02129185]
[1745365976931,0.10830305,93415.0,93409.0,0.02129185]
[1745365977166,0.001,93414.0,93409.0,0.02229185]
[1745365978508,0.10830305,93415.0,93409.0,0.02129185]
[1745365978689,0.001,93414.0,93409.0,0.02229185]
[1745365979205,0.00167235,93414.0,93409.0,0.02229185]
[1745365979404,0.00167235,93414.0,93409.0,0.02129185]
[1745365979846,0.00067235,93414.0,93409.0,0.01799185]
[1745365980046,0.00067235,93414.0,93409.0,0.001]
[1745365980227,0.00067235,93414.0,93409.0,0.02535634]
[1745365980426,0.00067235,93414.0,93409.0,0.001]
[1745365980634,0.00167235,93414.0,93409.0,0.001]
[1745365981958,0.15510305,93413.0,93404.0,0.02067028]
[1745365982111,0.00067235,93412.0,93404.0,0.02067028]
[1745365982315,0.10830305,93411.0,93404.0,0.04549879]
[1745365982522,0.00067235,93410.0,93404.0,0.02067028]
[1745365982888,0.10830305,93409.0,93404.0,0.02067028]
[1745365983090,0.00067235,93408.0,93404.0,0.02267028]
[1745365983286,0.1089754,93408.0,93404.0,0.02367028]
[1745365983523,0.1089754,93408.0,93404.0,0.02267028]
[1745365983724,0.1089754,93408.0,93404.0,0.02067028]
[1745365984150,0.1089754,93408.0,93403.0,0.00085]
[1745365984355,0.1099754,93408.0,93403.0,0.00085]
[1745365984541,0.10830305,93407.0,93403.0,0.02625764]
[1745365984780,0.00067235,93406.0,93403.0,0.00085]
[1745365984995,0.10830305,93405.0,93403.0,0.00085]
[1745365985206,0.00067235,93404.0,93403.0,0.00085]
[1745365985411,0.1089754,93404.0,93403.0,0.02642528]
[1745365985619,0.1089754,93404.0,93403.0,0.00085]
[1745365986210,0.1089754,93404.0,93403.0,0.00185]
[1745365986618,0.412,93425.0,93403.0,0.00185]
[1745365986619,0.00067235,93412.0,93403.0,0.02675802]
[1745365986819,0.00067235,93414.0,93403.0,0.02775802]
[1745365987042,0.10830305,93413.0,93403.0,0.02775802]
[1745365987177,0.10830305,93413.0,93403.0,0.29844372]
[1745365987387,0.10830305,93413.0,93403.0,0.29944372]
[1745365987571,0.10830305,93413.0,93403.0,0.29844372]
[1745365989658,0.10930305,93413.0,93403.0,0.29844372]
[1745365990928,0.09517235,93412.0,93403.0,0.02675802]
[1745365991164,0.10830305,93411.0,93403.0,0.02675802]
[1745365991366,0.00067235,93410.0,93403.0,0.02675802]
[1745365991601,0.10830305,93409.0,93403.0,0.02675802]
[1745365992246,0.00067235,93408.0,93403.0,0.02675802]
[1745365992484,0.10830305,93408.0,93403.0,0.02675802]
[1745365993153,0.10830305,93408.0,93403.0,0.02775802]
[1745365993566,0.10830305,93408.0,93403.0,0.02675802]
[1745365994039,0.10930305,93408.0,93403.0,0.02675802]
[1745365994471,0.11030305,93408.0,93403.0,0.02675802]